fUSD/lending_fUSD_20240905
["ID","MTS","AMOUNT","RATE_DAILY","PERIOD"]
[337268839,1725561060862,-351.779968,0.00014994,2]
[337268840,1725561060871,-500.0,0.00014994,2]
[337268841,1725561060881,-500.0,0.00014994,2]
[337268842,1725561060890,-500.0,0.00014994,2]
[337268843,1725561060899,-500.0,0.00014994,2]
[337268844,1725561060909,-500.0,0.00014994,2]
[337268845,1725561060918,-500.0,0.00014994,2]
[337268846,1725561060927,-500.0,0.00014994,2]
[337268847,1725561060938,-500.0,0.00014994,2]
[337268848,1725561060950,-500.0,0.00014994,2]
[337268849,1725561060960,-500.0,0.00014994,2]
[337268850,1725561060971,-1008.11,0.00014994,2]
[337268851,1725561060982,-1008.11,0.00014994,2]
[337268852,1725561060992,-500.0,0.00014994,2]
[337268853,1725561061003,-500.0,0.00014994,2]
[337268854,1725561061014,-500.0,0.00014994,2]
[337268855,1725561061025,-500.0,0.00014994,2]
[337268856,1725561061037,-500.0,0.00014994,2]
[337268857,1725561061046,-500.0,0.00014994,2]
[337268858,1725561061055,-500.0,0.00014994,2]
[337268859,1725561061064,-500.0,0.00014994,2]
[337268860,1725561061074,-500.0,0.00014994,2]
[337268861,1725561061083,-500.0,0.00014994,2]
[337268862,1725561061093,-500.0,0.00014994,2]
[337268863,1725561061104,-500.0,0.00014994,2]
[337268864,1725561061114,-500.0,0.00014994,2]
[337268865,1725561061123,-500.0,0.00014994,2]
[337268866,1725561061132,-500.0,0.00014994,2]
[337268867,1725561061141,-799.09,0.00014994,2]
[337268868,1725561061151,-4305.0689425,0.00014994,2]
[337268869,1725561061161,-500.0,0.00014994,2]
[337268870,1725561061170,-590.25,0.00014994,2]
[337268871,1725561061180,-970.13,0.00014994,2]
[337268872,1725561061189,-970.13,0.00014994,2]
[337268873,1725561061198,-500.0,0.00014994,2]
[337268874,1725561061208,-500.0,0.00014994,2]
[337268875,1725561061217,-500.0,0.00014994,2]
[337268876,1725561061227,-872.57,0.00014994,2]
[337268877,1725561061236,-872.57,0.00014994,2]
[337268878,1725561061245,-500.0,0.00014994,2]
[337268879,1725561061255,-951.18,0.00014994,2]
[337268880,1725561061267,-951.18,0.00014994,2]
[337268881,1725561061276,-500.0,0.00014994,2]
[337268882,1725561061286,-698.74,0.00014994,2]
[337268883,1725561061296,-3144.9256272,0.00014994,2]
[337268884,1725561061305,-698.74,0.00014994,2]
[337268885,1725561061315,-715.76,0.00014994,2]
[337268886,1725561061324,-715.76,0.00014994,2]
[337268887,1725561061334,-500.0,0.00014994,2]
[337268888,1725561061343,-591.16,0.00014994,2]
[337268889,1725561061353,-500.0,0.00014994,2]
[337268890,1725561061362,-500.0,0.00014994,2]
[337268891,1725561061372,-707.68,0.00014994,2]
[337268892,1725561061381,-37224.2348159,0.00014994,2]
[337268893,1725561061392,-1222.38,0.00014994,2]
[337268894,1725561061402,-1222.38,0.00014994,2]
[337268895,1725561061411,-500.0,0.00014994,2]
[337268896,1725561061421,-500.0,0.00014994,2]
[337268897,1725561061430,-397.04,0.00014994,2]
[337268898,1725561061440,-29566.5235633,0.00014994,2]
[337268899,1725561061450,-513.02,0.00014994,2]
[337268900,1725561061460,-500.0,0.00014994,2]
[337268901,1725561061469,-500.0,0.00014994,2]
[337268902,1725561061479,-500.0,0.00014994,2]
[337268903,1725561061489,-500.01,0.00014994,2]
[337268904,1725561061500,-500.0,0.00014994,2]
[337268905,1725561061512,-500.01,0.00014994,2]
[337268906,1725561061525,-500.0,0.00014994,2]
[337268907,1725561061536,-500.0,0.00014994,2]
[337268908,1725561061546,-500.0,0.00014994,2]
[337268909,1725561061556,-500.0,0.00014994,2]
[337268910,1725561061565,-2036.3051133,0.00014994,2]
[337268911,1725561061574,-902.73,0.00014994,2]
[337268912,1725561061583,-500.0,0.00014994,2]
[337268913,1725561061595,-902.73,0.00014994,2]
[337268914,1725561061606,-500.0,0.00014994,2]
[337268915,1725561061616,-500.0,0.00014994,2]
[337268916,1725561061626,-365.68,0.00014994,2]
[337268917,1725561061637,-500.0,0.00014994,2]
[337268918,1725561061649,-500.0,0.00014994,2]
[337268919,1725561061658,-500.0,0.00014994,2]
[337268920,1725561061667,-500.0,0.00014994,2]
[337268921,1725561061676,-500.0,0.00014994,2]
[337268922,1725561061687,-500.0,0.00014994,2]
[337268923,1725561061696,-1692.3050989,0.00014994,2]
[337268924,1725561061706,-500.0,0.00014994,2]
[337268925,1725561061715,-500.0,0.00014994,2]
[337268926,1725561061725,-578.91,0.00014994,2]
[337268927,1725561061734,-578.91,0.00014994,2]
[337268928,1725561061743,-500.0,0.00014994,2]
[337268929,1725561061752,-500.0,0.00014994,2]
[337268930,1725561061761,-789.73,0.00014994,2]
[337268931,1725561061770,-500.0,0.00014994,2]
[337268932,1725561061780,-789.73,0.00014994,2]
[337268933,1725561061789,-500.0,0.00014994,2]
[337268934,1725561061799,-500.0,0.00014994,2]
[337268935,1725561061808,-500.0,0.00014994,2]
[337268936,1725561061817,-500.0,0.00014994,2]
[337268937,1725561061827,-500.0,0.00014994,2]
[337268938,1725561061836,-12915.97,0.00014994,2]
[337268939,1725561061845,-12915.97,0.00014994,2]
[337268940,1725561061857,-500.0,0.00014994,2]
[337268941,1725561061866,-500.0,0.00014994,2]
[337268942,1725561061876,-524.35,0.00014994,2]
[337268943,1725561061885,-524.35,0.00014994,2]
[337268944,1725561061894,-500.0,0.00014994,2]
[337268945,1725561061903,-500.0,0.00014994,2]
[337268946,1725561061913,-2983.37,0.00014994,2]
[337268947,1725561061922,-2983.37,0.00014994,2]
[337268948,1725561061931,-500.0,0.00014994,2]
[337268949,1725561061940,-500.0,0.00014994,2]
[337268950,1725561061950,-2129.35,0.00014994,2]
[337268951,1725561061960,-2129.35,0.00014994,2]
[337268952,1725561061969,-500.0,0.00014994,2]
[337268953,1725561061978,-229.32,0.00014994,2]
[337268954,1725561061987,-500.0,0.00014994,2]
[337268955,1725561061997,-500.0,0.00014994,2]
[337268956,1725561062006,-500.0,0.00014994,2]
[337268957,1725561062016,-334.32,0.00014994,2]
[337268958,1725561062026,-500.0,0.00014994,2]
[337268959,1725561062035,-500.0,0.00014994,2]
[337268960,1725561062046,-500.0,0.00014994,2]
[337268961,1725561062056,-500.0,0.00014994,2]
[337268962,1725561062065,-400.74,0.00014994,2]
[337268963,1725561062075,-500.0,0.00014994,2]
[337268964,1725561062085,-500.0,0.00014994,2]
[337268965,1725561062095,-6707.91,0.00014994,2]
[337268966,1725561062105,-6707.91,0.00014994,2]
[337268967,1725561062114,-3069.75,0.00014994,2]
[337268968,1725561062124,-500.0,0.00014994,2]
[337268969,1725561062134,-3069.75,0.00014994,2]
[337268970,1725561062144,-500.0,0.00014994,2]
[337268971,1725561062155,-500.0,0.00014994,2]
[337268972,1725561062165,-500.0,0.00014994,2]
[337268973,1725561062174,-500.0,0.00014994,2]
[337268974,1725561062184,-500.0,0.00014994,2]
[337268975,1725561062195,-500.0,0.00014994,2]
[337268976,1725561062206,-500.0,0.00014994,2]
[337268977,1725561062216,-500.0,0.00014994,2]
[337268978,1725561062226,-500.0,0.00014994,2]
[337268979,1725561062236,-500.0,0.00014994,2]
[337268980,1725561062245,-1596.22,0.00014994,2]
[337268981,1725561062255,-1596.22,0.00014994,2]
[337268982,1725561062265,-418.55451363,0.00014994,2]
[337268983,1725561062275,-1207.17,0.00014994,2]
[337268984,1725561062286,-1207.17,0.00014994,2]
[337268985,1725561062298,-831.73,0.00014994,2]
[337268986,1725561062307,-831.73,0.00014994,2]
[337268987,1725561062317,-642.17,0.00014994,2]
[337268988,1725561062327,-642.17,0.00014994,2]
[337268989,1725561062337,-851.1,0.00014994,2]
[337268990,1725561062346,-851.1,0.00014994,2]
[337268991,1725561062401,-500.0,0.00014994,2]
[337268992,1725561062411,-468.46,0.00014994,2]
[337268993,1725561062420,-1060.02,0.00014994,2]
[337268994,1725561062430,-1060.02,0.00014994,2]
[337268995,1725561062440,-23273.8,0.00014994,2]
[337268996,1725561062449,-23273.8,0.00014994,2]
[337268997,1725561062459,-220.88457928,0.00014994,2]
[337268998,1725561062468,-963.07,0.00014994,2]
[337268999,1725561062478,-963.07,0.00014994,2]
[337269000,1725561062487,-500.0,0.00014994,2]
[337269001,1725561062497,-500.0,0.00014994,2]
[337269002,1725561062506,-7139.75,0.00014994,2]
[337269003,1725561062518,-7139.75,0.00014994,2]
[337269004,1725561062529,-634.52939392,0.00014994,2]
[337269005,1725561062538,-3375.0,0.00014994,2]
[337269006,1725561062549,-3375.0,0.00014994,2]
[337269007,1725561062559,-500.0,0.00014994,2]
[337269008,1725561062569,-425.34,0.00014994,2]
[337269009,1725561062579,-236.3,0.00014994,2]
[337269010,1725561062588,-2299.74,0.00014994,2]
[337269011,1725561062599,-2299.74,0.00014994,2]
[337269012,1725561062609,-500.0,0.00014994,2]
[337269013,1725561062619,-622.25,0.00014994,2]
[337269014,1725561062628,-1790.61,0.00014994,2]
[337269015,1725561062638,-500.0,0.00014994,2]
[337269016,1725561062648,-500.0,0.00014994,2]
[337269017,1725561062658,-500.0,0.00014994,2]
[337269018,1725561062668,-500.0,0.00014994,2]
[337269019,1725561062678,-6932.94,0.00014994,2]
[337269020,1725561062688,-6932.94,0.00014994,2]
[337269021,1725561062697,-3304.68,0.00014994,2]
[337269022,1725561062706,-3304.68,0.00014994,2]
[337269023,1725561062716,-3000.7,0.00014994,2]
[337269024,1725561062725,-3000.7,0.00014994,2]
[337269025,1725561062734,-361.6,0.00014994,2]
[337269026,1725561062743,-500.0,0.00014994,2]
[337269027,1725561062752,-500.0,0.00014994,2]
[337269028,1725561062762,-500.0,0.00014994,2]
[337269029,1725561062772,-500.0,0.00014994,2]
[337269030,1725561062780,-500.0,0.00014994,2]
[337269031,1725561062791,-500.0,0.00014994,2]
[337269032,1725561062800,-500.0,0.00014994,2]
[337269033,1725561062809,-500.0,0.00014994,2]
[337269034,1725561062819,-4458.5,0.00014994,2]
[337269035,1725561062828,-4458.5,0.00014994,2]
[337269036,1725561062838,-837.63,0.00014994,2]
[337269037,1725561062847,-837.63,0.00014994,2]
[337269038,1725561062856,-500.0,0.00014994,2]
[337269039,1725561062865,-500.0,0.00014994,2]
[337269040,1725561062874,-3430.41,0.00014994,2]
[337269041,1725561062883,-3430.41,0.00014994,2]
[337269042,1725561062892,-1031.09,0.00014994,2]
[337269043,1725561062901,-1031.09,0.00014994,2]
[337269044,1725561062911,-3565.08,0.00014994,2]
[337269045,1725561062920,-3565.08,0.00014994,2]
[337269046,1725561062930,-500.0,0.00014994,2]
[337269047,1725561062939,-500.0,0.00014994,2]
[337269048,1725561062948,-500.0,0.00014994,2]
[337269049,1725561062958,-2448.07,0.00014994,2]
[337269050,1725561062967,-2448.07,0.00014994,2]
[337269051,1725561062977,-500.0,0.00014994,2]
[337269052,1725561062986,-500.0,0.00014994,2]
[337269053,1725561062997,-500.0,0.00014994,2]
[337269054,1725561063006,-500.0,0.00014994,2]
[337269055,1725561063016,-10228.17,0.00014994,2]
[337269056,1725561063026,-10228.17,0.00014994,2]
[337269057,1725561063037,-4461.09,0.00014994,2]
[337269058,1725561063048,-4461.09,0.00014994,2]
[337269059,1725561063058,-408.66,0.00014994,2]
[337269060,1725561063068,-500.0,0.00014994,2]
[337269061,1725561063078,-500.0,0.00014994,2]
[337269062,1725561063087,-1570.52,0.00014994,2]
[337269063,1725561063097,-1570.52,0.00014994,2]
[337269064,1725561063107,-500.0,0.00014994,2]
[337269065,1725561063117,-169.55600368,0.00014994,2]
[337269066,1725561063127,-2309.19,0.00014994,2]
[337269067,1725561063137,-2309.19,0.00014994,2]
[337269068,1725561063146,-3881.08,0.00014994,2]
[337269069,1725561063156,-3881.08,0.00014994,2]
[337269070,1725561063166,-842.08,0.00014994,2]
[337269071,1725561063176,-500.0,0.00014994,2]
[337269072,1725561063186,-2310.54,0.00014994,2]
[337269073,1725561063196,-2310.54,0.00014994,2]
[337269074,1725561063206,-674.13,0.00014994,2]
[337269075,1725561063216,-674.13,0.00014994,2]
[337269076,1725561063226,-826.62,0.00014994,2]
[337269077,1725561063236,-826.62,0.00014994,2]
[337269078,1725561063246,-921.26,0.00014994,2]
[337269079,1725561063256,-889.71,0.00014994,2]
[337269080,1725561063266,-889.71,0.00014994,2]
[337269081,1725561063277,-1288.44,0.00014994,2]
[337269082,1725561063287,-1288.44,0.00014994,2]
[337269083,1725561063298,-5322.3,0.00014994,2]
[337269084,1725561063309,-5322.3,0.00014994,2]
[337269085,1725561063319,-4988.25,0.00014994,2]
[337269086,1725561063329,-4988.25,0.00014994,2]
[337269087,1725561063339,-881.32,0.00014994,2]
[337269088,1725561063349,-881.32,0.00014994,2]
[337269089,1725561063362,-2716.66,0.00014994,2]
[337269090,1725561063380,-2716.66,0.00014994,2]
[337269091,1725561063402,-1762.89,0.00014994,2]
[337269092,1725561063413,-1762.89,0.00014994,2]
[337269093,1725561063423,-644.58,0.00014994,2]
[337269094,1725561063434,-644.58,0.00014994,2]
[337269095,1725561063443,-1269.27,0.00014994,2]
[337269096,1725561063454,-1269.27,0.00014994,2]
[337269097,1725561063464,-500.0,0.00014994,2]
[337269098,1725561063473,-500.0,0.00014994,2]
[337269099,1725561063484,-1570.68,0.00014994,2]
[337269100,1725561063495,-603.89,0.00014994,2]
[337269101,1725561063506,-603.89,0.00014994,2]
[337269102,1725561063517,-537.55,0.00014994,2]
[337269103,1725561063529,-500.0,0.00014994,2]
[337269104,1725561063538,-500.0,0.00014994,2]
[337269105,1725561063555,-905.02,0.00014994,2]
[337269106,1725561063566,-905.02,0.00014994,2]
[337269107,1725561063575,-500.0,0.00014994,2]
[337269108,1725561063586,-500.0,0.00014994,2]
[337269109,1725561063597,-500.0,0.00014994,2]
[337269110,1725561063607,-810.24,0.00014994,2]
[337269111,1725561063617,-810.24,0.00014994,2]
[337269112,1725561063627,-734.12,0.00014994,2]
[337269113,1725561063637,-734.12,0.00014994,2]
[337269114,1725561063647,-768.05,0.00014994,2]
[337269115,1725561063657,-768.05,0.00014994,2]
[337269116,1725561063668,-2643.59,0.00014994,2]
[337269117,1725561063678,-2643.59,0.00014994,2]
[337269118,1725561063688,-500.0,0.00014994,2]
[337269119,1725561063698,-500.0,0.00014994,2]
[337269120,1725561063708,-500.0,0.00014994,2]
[337269121,1725561063718,-631.32,0.00014994,2]
[337269122,1725561063729,-488537.72395059,0.00014995,2]
[337269123,1725561063740,-432.434302,0.00014995,2]
[337269124,1725561063750,-432.4343,0.00014995,2]
[337269125,1725561063760,-670.36,0.00014995,2]
[337269126,1725561063770,-605.83510447,0.00014995,2]
[337269127,1725561063781,-521.24,0.00014995,2]
[337269128,1725561063792,-500.0,0.00014995,2]
[337269129,1725561063803,-500.0,0.00014995,2]
[337269130,1725561063813,-500.0,0.00014995,2]
[337269131,1725561063824,-500.0,0.00014995,2]
[337269132,1725561063835,-500.0,0.00014995,2]
[337269133,1725561063846,-500.0,0.00014995,2]
[337269134,1725561063857,-500.0,0.00014995,2]
[337269135,1725561063868,-500.0,0.00014995,2]
[337269136,1725561063879,-500.0,0.00014995,2]
[337269137,1725561063889,-473.08,0.00014995,2]
[337269138,1725561063899,-620.7,0.00014995,2]
[337269139,1725561063910,-500.0,0.00014995,2]
[337269140,1725561063921,-500.0,0.00014995,2]
[337269141,1725561063931,-500.0,0.00014995,2]
[337269142,1725561063942,-500.0,0.00014995,2]
[337269143,1725561063952,-500.0,0.00014995,2]
[337269144,1725561063963,-500.0,0.00014995,2]
[337269145,1725561063974,-500.0,0.00014995,2]
[337269146,1725561063983,-954.73,0.00014995,2]
[337269147,1725561063994,-500.0,0.00014995,2]
[337269148,1725561064004,-500.0,0.00014995,2]
[337269149,1725561064014,-500.0,0.00014995,2]
[337269150,1725561064025,-500.0,0.00014995,2]
[337269151,1725561064035,-711.3,0.00014995,2]
[337269152,1725561064046,-500.0,0.00014995,2]
[337269153,1725561064057,-500.0,0.00014995,2]
[337269154,1725561064067,-500.0,0.00014995,2]
[337269155,1725561064077,-500.0,0.00014995,2]
[337269156,1725561064087,-500.0,0.00014995,2]
[337269157,1725561064097,-500.0,0.00014995,2]
[337269158,1725561064107,-1008.11,0.00014995,2]
[337269159,1725561064117,-500.0,0.00014995,2]
[337269160,1725561064127,-500.0,0.00014995,2]
[337269161,1725561064137,-431.70929118,0.00014995,2]
[337269162,1725561064147,-500.0,0.00014995,2]
[337269163,1725561064157,-500.0,0.00014995,2]
[337269164,1725561064168,-500.0,0.00014995,2]
[337269165,1725561064178,-500.0,0.00014995,2]
[337269166,1725561064187,-500.0,0.00014995,2]
[337269167,1725561064197,-500.0,0.00014995,2]
[337269168,1725561064207,-799.09,0.00014995,2]
[337269169,1725561064217,-799.09,0.00014995,2]
[337269170,1725561064227,-500.0,0.00014995,2]
[337269171,1725561064237,-500.0,0.00014995,2]
[337269172,1725561064247,-590.25,0.00014995,2]
[337269173,1725561064257,-590.25,0.00014995,2]
[337269174,1725561064267,-970.13,0.00014995,2]
[337269175,1725561064277,-500.0,0.00014995,2]
[337269176,1725561064287,-500.0,0.00014995,2]
[337269177,1725561064297,-500.0,0.00014995,2]
[337269178,1725561064307,-872.57,0.00014995,2]
[337269179,1725561064317,-500.0,0.00014995,2]
[337269180,1725561064327,-500.0,0.00014995,2]
[337269181,1725561064337,-500.0,0.00014995,2]
[337269182,1725561064347,-500.0,0.00014995,2]
[337269183,1725561064357,-951.18,0.00014995,2]
[337269184,1725561064367,-698.74,0.00014995,2]
[337269185,1725561064377,-715.76,0.00014995,2]
[337269186,1725561064387,-500.0,0.00014995,2]
[337269187,1725561064398,-500.0,0.00014995,2]
[337269188,1725561064407,-500.0,0.00014995,2]
[337269189,1725561064417,-707.68,0.00014995,2]
[337269190,1725561064428,-707.68,0.00014995,2]
[337269191,1725561064438,-1222.38,0.00014995,2]
[337269192,1725561064448,-500.0,0.00014995,2]
[337269193,1725561064458,-513.02,0.00014995,2]
[337269194,1725561064468,-513.02,0.00014995,2]
[337269195,1725561064478,-500.0,0.00014995,2]
[337269196,1725561064488,-629.61034931,0.00014995,2]
[337269197,1725561064498,-500.01,0.00014995,2]
[337269198,1725561064507,-500.0,0.00014995,2]
[337269199,1725561064520,-500.0,0.00014995,2]
[337269200,1725561064529,-902.73,0.00014995,2]
[337269201,1725561064539,-500.0,0.00014995,2]
[337269202,1725561064550,-500.0,0.00014995,2]
[337269203,1725561064560,-500.0,0.00014995,2]
[337269204,1725561064570,-500.0,0.00014995,2]
[337269205,1725561064580,-500.0,0.00014995,2]
[337269206,1725561064589,-578.91,0.00014995,2]
[337269207,1725561064600,-500.0,0.00014995,2]
[337269208,1725561064610,-500.0,0.00014995,2]
[337269209,1725561064620,-789.73,0.00014995,2]
[337269210,1725561064631,-500.0,0.00014995,2]
[337269211,1725561064640,-500.0,0.00014995,2]
[337269212,1725561064650,-500.0,0.00014995,2]
[337269213,1725561064660,-500.0,0.00014995,2]
[337269214,1725561064670,-635.34,0.00014995,2]
[337269215,1725561064680,-500.0,0.00014995,2]
[337269216,1725561064691,-12915.97,0.00014995,2]
[337269217,1725561064702,-164.1,0.00014995,2]
[337269218,1725561064713,-500.0,0.00014995,2]
[337269219,1725561064723,-524.35,0.00014995,2]
[337269220,1725561064733,-500.0,0.00014995,2]
[337269221,1725561064743,-456.0,0.00014995,2]
[337269222,1725561064753,-500.0,0.00014995,2]
[337269223,1725561064762,-500.0,0.00014995,2]
[337269224,1725561064773,-2983.37,0.00014995,2]
[337269225,1725561064782,-500.0,0.00014995,2]
[337269226,1725561064793,-500.0,0.00014995,2]
[337269227,1725561064805,-500.0,0.00014995,2]
[337269228,1725561064816,-282.76949098,0.00014995,2]
[337269229,1725561064827,-2129.35,0.00014995,2]
[337269230,1725561064838,-500.0,0.00014995,2]
[337269231,1725561064849,-500.0,0.00014995,2]
[337269232,1725561064859,-500.0,0.00014995,2]
[337269233,1725561064871,-500.0,0.00014995,2]
[337269234,1725561064882,-500.0,0.00014995,2]
[337269235,1725561064893,-500.0,0.00014995,2]
[337269236,1725561064903,-6707.91,0.00014995,2]
[337269237,1725561064914,-3069.75,0.00014995,2]
[337269238,1725561064924,-500.0,0.00014995,2]
[337269239,1725561064934,-500.0,0.00014995,2]
[337269240,1725561064945,-500.0,0.00014995,2]
[337269241,1725561064955,-500.0,0.00014995,2]
[337269242,1725561064965,-311.42056146,0.00014995,2]
[337269243,1725561064975,-500.0,0.00014995,2]
[337269244,1725561064985,-1596.22,0.00014995,2]
[337269245,1725561064995,-1207.17,0.00014995,2]
[337269246,1725561065005,-831.73,0.00014995,2]
[337269247,1725561065016,-642.17,0.00014995,2]
[337269248,1725561065026,-851.1,0.00014995,2]
[337269249,1725561065036,-1060.02,0.00014995,2]
[337269250,1725561065048,-23273.8,0.00014995,2]
[337269251,1725561065058,-963.07,0.00014995,2]
[337269252,1725561065069,-500.0,0.00014995,2]
[337269253,1725561065079,-7139.75,0.00014995,2]
[337269254,1725561065089,-3375.0,0.00014995,2]
[337269255,1725561065100,-2299.74,0.00014995,2]
[337269256,1725561065110,-1790.61,0.00014995,2]
[337269257,1725561065120,-500.0,0.00014995,2]
[337269258,1725561065131,-494.81,0.00014995,2]
[337269259,1725561065141,-6932.94,0.00014995,2]
[337269260,1725561065151,-3304.68,0.00014995,2]
[337269261,1725561065161,-3000.7,0.00014995,2]
[337269262,1725561065171,-500.0,0.00014995,2]
[337269263,1725561065181,-500.0,0.00014995,2]
[337269264,1725561065191,-4458.5,0.00014995,2]
[337269265,1725561065200,-837.63,0.00014995,2]
[337269266,1725561065210,-500.0,0.00014995,2]
[337269267,1725561065220,-3430.41,0.00014995,2]
[337269268,1725561065230,-1031.09,0.00014995,2]
[337269269,1725561065240,-3565.08,0.00014995,2]
[337269270,1725561065252,-500.0,0.00014995,2]
[337269271,1725561065262,-500.0,0.00014995,2]
[337269272,1725561065273,-2448.07,0.00014995,2]
[337269273,1725561065284,-500.0,0.00014995,2]
[337269274,1725561065295,-214.62,0.00014995,2]
[337269275,1725561065305,-10228.17,0.00014995,2]
[337269276,1725561065316,-4461.09,0.00014995,2]
[337269277,1725561065326,-1570.52,0.00014995,2]
[337269278,1725561065472,-2309.19,0.00014995,2]
[337269279,1725561065482,-3881.08,0.00014995,2]
[337269280,1725561065491,-842.08,0.00014995,2]
[337269281,1725561065500,-500.0,0.00014995,2]
[337269282,1725561065510,-2310.54,0.00014995,2]
[337269283,1725561065520,-674.13,0.00014995,2]
[337269284,1725561065530,-826.62,0.00014995,2]
[337269285,1725561065539,-921.26,0.00014995,2]
[337269286,1725561065550,-889.71,0.00014995,2]
[337269287,1725561065559,-1288.44,0.00014995,2]
[337269288,1725561065568,-5322.3,0.00014995,2]
[337269289,1725561065578,-4988.25,0.00014995,2]
[337269290,1725561065587,-881.32,0.00014995,2]
[337269291,1725561065597,-2716.66,0.00014995,2]
[337269292,1725561065607,-1762.89,0.00014995,2]
[337269293,1725561065616,-644.58,0.00014995,2]
[337269294,1725561065625,-1269.27,0.00014995,2]
[337269295,1725561065634,-225.48,0.00014995,2]
[337269296,1725561065644,-1570.68,0.00014995,2]
[337269297,1725561065654,-603.89,0.00014995,2]
[337269298,1725561065663,-537.55,0.00014995,2]
[337269299,1725561065672,-500.0,0.00014995,2]
[337269300,1725561065681,-905.02,0.00014995,2]
[337269301,1725561065690,-500.0,0.00014995,2]
[337269302,1725561065699,-810.24,0.00014995,2]
[337269303,1725561065709,-734.12,0.00014995,2]
[337269304,1725561065718,-768.05,0.00014995,2]
[337269305,1725561065727,-2643.59,0.00014995,2]
[337269306,1725561065736,-500.0,0.00014995,2]
[337269307,1725561065745,-670.36,0.00014996,2]
[337269308,1725561065754,-521.24,0.00014996,2]
[337269309,1725561065763,-561.90360785,0.00014996,2]
[337269310,1725561065772,-500.0,0.00014996,2]
[337269311,1725561065782,-458.44,0.00014996,2]
[337269312,1725561065791,-500.0,0.00014996,2]
[337269313,1725561065801,-500.0,0.00014996,2]
[337269314,1725561065811,-395.86,0.00014996,2]
[337269315,1725561065820,-500.0,0.00014996,2]
[337269316,1725561065829,-500.0,0.00014996,2]
[337269317,1725561065838,-375.38,0.00014996,2]
[337269318,1725561065848,-500.0,0.00014996,2]
[337269319,1725561065857,-500.0,0.00014996,2]
[337269320,1725561065866,-500.0,0.00014996,2]
[337269321,1725561065876,-500.0,0.00014996,2]
[337269322,1725561065885,-500.0,0.00014996,2]
[337269323,1725561065894,-500.0,0.00014996,2]
[337269324,1725561065903,-500.0,0.00014996,2]
[337269325,1725561065912,-954.73,0.00014996,2]
[337269326,1725561065921,-500.0,0.00014996,2]
[337269327,1725561065930,-500.0,0.00014996,2]
[337269328,1725561065939,-500.0,0.00014996,2]
[337269329,1725561065948,-500.0,0.00014996,2]
[337269330,1725561065957,-500.0,0.00014996,2]
[337269331,1725561065966,-500.0,0.00014996,2]
[337269332,1725561065975,-711.3,0.00014996,2]
[337269333,1725561065984,-500.0,0.00014996,2]
[337269334,1725561065994,-500.0,0.00014996,2]
[337269335,1725561066003,-500.0,0.00014996,2]
[337269336,1725561066012,-500.0,0.00014996,2]
[337269337,1725561066021,-500.0,0.00014996,2]
[337269338,1725561066031,-500.0,0.00014996,2]